bitfinex/quotes_ETHUSD_20240828
["timestamp","ask_amount","ask_price","bid_price","bid_amount"]
[1724839090105,10.72647,2546.7,2545.8,0.04811057]
[1724839090295,3.92738,2546.3,2545.4,0.04811057]
[1724839090502,3.92745,2546.2,2545.4,0.04811057]
[1724839090741,6.7997,2546.7,2544.9,0.04811057]
[1724839090742,3.92925,2545.1,2544.9,0.04811057]
[1724839090942,3.92925,2545.1,2543.8,0.3982]
[1724839090943,0.392925,2545.1,2544.4,0.04811057]
[1724839091166,0.392925,2545.1,2543.0,3.93231]
[1724839091167,3.92911,2545.1,2545.0,0.04811057]
[1724839091361,5.90977409,2546.4,2545.0,0.04811057]
[1724839091362,6.7997,2546.5,2545.8,0.04811057]
[1724839091558,6.7997,2546.5,2544.1,0.07858398]
[1724839091559,3.9285,2545.5,2545.4,0.04811057]
[1724839091848,3.9285,2545.5,2543.2,2.05]
[1724839091849,3.9285,2545.5,2545.0,0.04811057]
[1724839091998,3.67997,2546.4,2545.3,0.04811057]
[1724839091999,3.9275,2546.2,2545.3,0.04811057]
[1724839092206,3.92789,2545.9,2544.8,0.04811057]
[1724839092501,3.92958,2544.8,2544.6,0.04811057]
[1724839092703,3.92973,2544.7,2544.6,0.04811057]
[1724839093134,6.9466,2545.3,2544.2,8.20211057]
[1724839093315,3.92958,2544.8,2544.7,0.04811057]
[1724839093646,3.92921,2545.1,2544.3,0.04811057]
[1724839093881,3.93049,2544.3,2544.1,0.04811057]
[1724839094017,3.93049,2544.3,2542.7,3.93282]
[1724839094018,3.92974,2544.7,2544.3,0.04811057]
[1724839094368,3.93081,2544.1,2543.8,0.04811057]
[1724839094539,7.4632,2544.4,2543.6,8.20211057]
[1724839094854,3.93128,2543.7,2543.4,0.04811057]
[1724839095060,3.93144,2543.6,2543.4,0.04811057]
[1724839095225,7.4632,2544.4,2542.4,0.07863882]
[1724839095226,7.4632,2544.4,2544.1,0.04811057]
[1724839095431,3.92941,2545.0,2544.5,0.04811057]
[1724839095654,7.0343,2545.1,2544.5,0.04811057]
[1724839095655,3.92954,2544.9,2544.5,0.04811057]
[1724839095820,3.92991,2544.6,2544.3,0.04811057]
[1724839096017,7.0343,2545.1,2544.1,0.04811057]
[1724839096217,3.93002,2544.6,2544.1,0.04811057]
[1724839096471,3.93007,2544.5,2544.1,0.04811057]
[1724839096612,10.96351,2545.1,2544.6,0.04811057]
[1724839096613,7.0343,2545.1,2544.6,0.04811057]
[1724839096822,5.90977409,2545.5,2545.0,0.04811057]
[1724839096823,3.92864,2545.5,2545.0,0.04811057]
[1724839097020,5.90977409,2545.5,2544.6,0.04811057]
[1724839097265,5.90977409,2545.5,2542.5,2.0]
[1724839097266,3.92882,2545.3,2544.0,0.04811057]
[1724839097526,0.392864,2545.4,2544.0,0.04811057]
[1724839097527,3.93069,2544.1,2544.0,0.04811057]
[1724839097675,3.93057,2544.2,2543.8,0.04811057]
[1724839097882,10.99701,2544.6,2543.3,8.20211057]
[1724839097883,3.93069,2544.1,2543.3,8.20211057]
[1724839098097,7.067,2546.6,2546.4,0.04811057]
[1724839098239,7.067,2546.6,2544.5,3.92993]
[1724839098240,3.92856,2545.5,2545.2,0.04811057]
[1724839098435,3.9286,2545.5,2545.2,0.04811057]
[1724839098736,4.63376,2546.5,2545.2,0.04811057]
[1724839098940,1.36834741,2546.4,2545.8,0.04811057]
[1724839099138,1.36834741,2546.4,2546.0,0.04811057]
[1724839099139,3.92743,2546.2,2546.0,0.04811057]
[1724839099383,3.92768,2546.1,2545.9,0.04811057]
[1724839099543,1.29767741,2546.5,2545.6,0.04811057]
[1724839099739,3.92783,2546.0,2545.6,0.04811057]
[1724839099941,7.067,2546.6,2546.5,0.04811057]
[1724839100490,9.83484409,2547.8,2546.2,8.154]
[1724839100491,3.92527,2547.6,2547.3,0.04811057]
[1724839100788,10.99217,2547.7,2547.3,0.04811057]
[1724839100995,7.067,2547.7,2547.5,0.04811057]
[1724839101311,7.067,2547.7,2546.6,0.04811057]
[1724839101312,3.92634,2546.9,2546.6,0.04811057]
[1724839101454,13.08977409,2548.1,2544.6,0.05]
[1724839101455,7.18,2547.0,2546.0,0.04811057]
[1724839101645,7.18,2547.0,2543.7,3.98126]
[1724839101646,5.90977409,2546.5,2545.5,0.04811057]
[1724839102090,3.92834,2545.6,2545.5,0.04811057]
[1724839102258,3.92898,2545.2,2545.0,0.04811057]
[1724839102465,7.2222,2545.6,2544.8,0.04811057]
[1724839102686,5.90977409,2545.3,2544.3,0.04811057]
[1724839102892,3.93066,2544.1,2544.0,0.04811057]
[1724839103108,3.1097608,2544.1,2544.0,0.04811057]
[1724839103250,3.93066,2544.1,2544.0,0.04811057]
[1724839103452,3.92982,2544.7,2544.1,0.04811057]
[1724839103453,3.93038,2544.3,2544.1,0.04811057]
[1724839103688,5.90977409,2544.9,2544.1,0.04811057]
[1724839103903,3.9305,2544.2,2544.1,0.04811057]
[1724839104206,5.90977409,2544.3,2543.5,0.04811057]
[1724839104351,3.93143,2543.6,2543.5,0.04811057]
[1724839104853,3.93072,2544.1,2543.7,0.04811057]
[1724839104854,3.93098,2543.9,2543.7,0.04811057]
[1724839105050,3.93073,2544.1,2543.7,0.04811057]
[1724839105361,3.9303,2544.4,2544.0,0.04811057]
[1724839105547,6.9356,2544.5,2544.2,0.04811057]
[1724839105991,10.86564,2544.5,2544.4,0.04811057]
[1724839106197,6.9356,2544.5,2544.0,0.04811057]
[1724839106357,6.9356,2544.5,2543.0,8.154]
[1724839106358,0.41132916,2547.7,2546.1,0.04811057]
[1724839106551,3.92649,2546.8,2546.7,0.04811057]
[1724839106964,3.92626,2547.0,2546.7,0.04811057]
[1724839107149,4.334609,2548.9,2546.9,0.04811057]
[1724839107150,3.92597,2547.2,2546.9,0.04811057]
[1724839107389,3.9256,2547.4,2547.2,0.04811057]
[1724839107551,7.85144,2547.3,2547.2,0.04811057]
[1724839107907,7.85144,2547.3,2544.9,5.05]
[1724839107908,3.92912,2548.4,2547.8,0.04811057]
[1724839108054,3.92912,2548.4,2548.3,0.04811057]
[1724839108254,0.005,2548.4,2548.3,0.04811057]
[1724839108584,0.03087981,2551.9,2549.0,0.04811057]
[1724839108821,0.03087981,2551.9,2548.0,15.2643]
[1724839108822,4.22167,2550.0,2549.4,0.04811057]
[1724839108983,0.3,2550.0,2549.4,0.04811057]
[1724839109395,3.95242139,2549.5,2549.4,0.04811057]
[1724839109682,0.03009139,2549.5,2549.4,0.04811057]
[1724839110021,0.3,2550.0,2549.9,0.04811057]
[1724839110321,0.3,2550.0,2549.9,20.27983057]
[1724839110505,0.1510691,2551.1,2549.9,20.27983057]
[1724839110506,0.1510691,2551.1,2551.0,0.04811057]
[1724839110681,0.1510691,2551.1,2550.7,8.20211057]
[1724839111034,0.1510691,2551.1,2548.8,3.0]
[1724839111035,0.1510691,2551.1,2550.4,8.154]
[1724839111213,0.03087981,2551.9,2551.7,0.04811057]
[1724839112337,0.03087981,2551.9,2551.8,8.156]
[1724839112641,3.91524,2554.2,2553.4,0.04811057]
[1724839112923,7.83208,2553.6,2553.5,8.20211057]
[1724839113130,0.1510691,2554.1,2554.0,0.04811057]
[1724839113279,0.1510691,2554.1,2553.7,0.04811057]
[1724839113482,0.1510691,2554.1,2551.8,3.0]
[1724839113483,7.83238,2553.5,2553.4,0.04811057]
[1724839113732,3.91619,2553.5,2553.4,0.04811057]
[1724839114032,3.91619,2553.5,2553.2,8.154]
[1724839114033,7.83208,2553.6,2553.5,0.04811057]
[1724839114720,7.83208,2553.6,2551.9,3.91849]
[1724839114721,5.90977409,2553.7,2551.7,0.04811057]
[1724839114930,0.15295853,2554.1,2551.1,0.04811057]
[1724839114931,3.91906,2551.7,2551.1,0.04811057]
[1724839115104,13.23997409,2552.4,2551.1,0.04811057]
[1724839115105,7.83944,2551.2,2551.1,0.04811057]
[1724839115305,13.23997409,2552.4,2550.9,0.04811057]
[1724839115621,7.84128,2550.6,2550.5,0.04811057]
[1724839116243,3.91844,2552.1,2551.9,0.04811057]
[1724839116452,3.91849,2552.0,2551.9,0.04811057]
[1724839116602,3.91805,2552.3,2552.2,0.04811057]
[1724839116939,3.91788,2552.4,2552.3,0.04811057]
[1724839117266,0.45664791,2554.0,2552.7,0.04811057]
[1724839117267,1.067951,2552.8,2552.7,0.04811057]
[1724839117400,5.90977409,2553.7,2552.6,0.04811057]
[1724839117600,10.67814,2553.8,2552.2,0.04811057]
[1724839117601,7.83606,2552.3,2552.2,0.04811057]
[1724839117800,5.90977409,2553.1,2550.4,10.75932]
[1724839117801,3.91788,2552.4,2551.7,0.04811057]
[1724839118036,0.51626087,2553.4,2551.7,0.04811057]
[1724839118037,7.8376,2551.8,2551.7,0.04811057]
[1724839118241,3.92003,2551.0,2550.9,0.04811057]
[1724839118535,1.175625,2551.8,2551.4,0.04811057]
[1724839118536,7.83852,2551.5,2551.4,0.04811057]
[1724839118709,7.83852,2551.5,2550.4,4.894]
[1724839118710,3.91926,2551.5,2551.2,0.04811057]
[1724839118911,3.9187,2551.9,2551.6,0.04811057]
[1724839119123,7.8374,2551.9,2551.8,0.04811057]
[1724839119424,0.03166825,2554.4,2552.9,0.04811057]
[1724839119632,0.03166825,2554.4,2553.1,0.04811057]
[1724839119633,5.90977409,2554.0,2553.1,0.04811057]
[1724839119851,3.91604,2553.6,2553.5,0.04811057]
[1724839120200,3.91542,2554.0,2553.9,0.04811057]
[1724839120398,3.91573,2553.8,2553.7,0.04811057]
[1724839120625,3.91573,2553.8,2553.1,0.0783291]
[1724839120626,0.1510691,2554.1,2554.0,0.04811057]
[1724839121210,4.0663391,2554.1,2554.0,0.04811057]
[1724839121411,8.38824301,2554.1,2554.0,0.04811057]
[1724839121610,4.47297301,2554.1,2554.0,0.04811057]
[1724839121816,0.1510691,2554.1,2554.0,0.04811057]
[1724839122010,0.1510691,2554.1,2554.0,3.96353057]
[1724839122223,0.00457515,2555.0,2554.9,0.04811057]
[1724839122444,0.00457515,2555.0,2554.9,16.42531057]
[1724839122648,0.00457515,2555.0,2554.9,0.04811057]
[1724839122802,0.00457515,2555.0,2554.7,0.04811057]
[1724839122803,3.9142,2554.8,2554.7,0.04811057]
[1724839123005,0.00457515,2555.0,2554.7,0.04811057]
[1724839123006,0.00457515,2555.0,2554.9,0.04811057]
[1724839123245,0.00457515,2555.0,2554.9,7.95444534]
[1724839123453,0.02500417,2555.2,2555.1,0.04811057]
[1724839124013,0.02500417,2555.2,2554.0,3.9154]
[1724839124014,3.91466,2554.5,2554.4,0.04811057]
[1724839124257,3.91466,2554.5,2554.1,0.04811057]
[1724839124258,7.83024,2554.2,2554.1,0.04811057]
[1724839124410,7.83084,2554.0,2553.9,0.04811057]
[1724839124958,7.83084,2554.0,2552.5,7.3252]
[1724839124959,7.83146,2553.8,2553.7,0.04811057]
[1724839125250,3.91573,2553.8,2553.7,0.04811057]
[1724839125413,3.91573,2553.8,2553.4,4.894]
[1724839125414,3.91467,2554.5,2554.1,0.04811057]
[1724839125613,7.83084,2554.0,2553.9,0.04811057]
[1724839125867,7.83084,2554.0,2551.9,0.05]
[1724839125868,3.91561,2553.9,2553.2,0.04811057]
[1724839126074,3.91561,2553.9,2550.8,3.92019]
[1724839126075,7.83452,2552.8,2552.7,0.04811057]
[1724839126353,7.83452,2552.8,2551.9,0.07835298]
[1724839126354,3.91772,2552.5,2552.4,0.04811057]
[1724839126709,0.391678,2553.1,2551.5,0.07837021]
[1724839126710,3.91711,2552.9,2552.8,0.04811057]
[1724839127152,9.081466,2552.9,2552.8,0.04811057]
[1724839127356,5.164356,2552.9,2552.8,0.04811057]
[1724839127666,3.91742,2552.7,2552.6,0.04811057]
[1724839128013,3.91742,2552.7,2552.0,4.894]
[1724839128014,3.91834,2552.1,2552.0,4.894]
[1724839128214,1.247246,2552.7,2551.9,0.04811057]
[1724839128215,7.83698,2552.0,2551.9,0.04311057]
[1724839128512,3.91786,2552.5,2552.4,0.04311057]
[1724839128750,5.164766,2552.7,2551.4,4.894]
[1724839128751,1.247246,2552.7,2552.6,0.04311057]
[1724839128958,5.164666,2552.7,2552.6,0.04311057]
[1724839129138,1.247246,2552.7,2552.6,0.04311057]
[1724839129451,1.247246,2552.7,2552.6,4.93711057]
[1724839129947,0.05,2552.6,2552.4,0.07835191]
[1724839130148,0.05,2552.3,2552.1,8.156]
[1724839130370,0.05,2551.5,2549.9,0.3982]
[1724839130522,0.05,2551.5,2550.6,3.92064]
[1724839130523,0.00364507,2551.5,2550.6,3.92064]
[1724839130727,0.05364507,2551.3,2550.7,4.89513893]
[1724839131038,1.0780315,2551.3,2550.7,4.89513893]
[1724839131249,1.0780315,2551.3,2550.9,3.92011]
[1724839131438,1.0780315,2551.3,2551.2,3.91972]
[1724839131624,1.0780315,2551.3,2550.8,3.92029]
[1724839131829,1.0780315,2551.3,2550.7,4.89513893]
[1724839132038,0.00364507,2551.2,2550.8,0.0783923]
[1724839132215,0.00364507,2551.0,2550.7,4.89513893]
[1724839132729,0.00364507,2550.9,2550.7,4.89513893]
[1724839132931,0.00364507,2550.9,2550.7,4.97353467]
[1724839133115,0.00364507,2550.9,2550.7,4.89513893]
[1724839133116,1.08167657,2550.9,2550.7,4.89513893]
[1724839133474,0.00364507,2549.5,2548.8,3.9234]
[1724839133629,0.00364507,2549.5,2548.9,13.05113893]
[1724839134155,0.00364507,2549.1,2548.9,13.05113893]
[1724839134320,0.00364507,2549.1,2548.2,3.92427]
[1724839134321,0.00364507,2548.7,2548.2,0.3982]
[1724839134514,1.0780315,2549.5,2547.1,7.51367364]
[1724839134515,0.00364507,2548.3,2547.1,7.51367364]
[1724839134747,6.9436,2549.2,2547.2,16.97694893]
[1724839134748,0.05364507,2548.1,2547.2,16.97694893]
[1724839134917,0.00364507,2547.6,2547.2,4.89513893]
[1724839135112,0.908817,2547.6,2547.3,0.07850065]
[1724839135365,0.908817,2547.6,2547.3,0.55259929]
[1724839135519,0.908817,2547.6,2547.2,4.89513893]
[1724839135520,0.00364507,2547.5,2547.2,4.89513893]
[1724839135723,0.00364507,2547.3,2547.2,4.89513893]
[1724839136028,0.91246207,2547.3,2547.2,4.89513893]
[1724839136267,0.91246207,2547.3,2546.9,0.0785134]
[1724839136268,0.00364507,2547.1,2546.9,0.0785134]
[1724839136411,0.00364507,2547.1,2546.8,8.156]
[1724839136412,0.00364507,2546.9,2546.8,8.156]
[1724839136619,0.00364507,2546.9,2545.6,11.00363286]
[1724839136620,0.00364507,2546.5,2546.0,0.3982]
[1724839136844,0.05,2546.7,2546.1,0.07853553]
[1724839136845,0.00364507,2546.7,2546.1,0.07853553]
[1724839137053,0.00364507,2547.2,2546.2,8.156]
[1724839137257,0.908817,2546.7,2546.6,7.85353]
[1724839137467,0.908817,2546.7,2546.6,12.74866893]
[1724839137620,0.05364507,2548.4,2547.7,3.92509]
[1724839137817,0.05364507,2548.3,2547.8,0.07848234]
[1724839138025,0.05,2548.1,2547.8,0.07848234]
[1724839138247,0.05,2548.1,2547.2,12.08177]
[1724839138248,0.05,2547.2,2546.4,3.92707]
[1724839138450,3.92495,2547.8,2545.0,3.92926]
[1724839138451,0.00364507,2547.8,2546.6,3.92668]
[1724839138650,0.00364507,2547.8,2546.8,3.92643]
[1724839138651,0.05,2547.7,2546.8,3.92643]
[1724839138862,0.00364507,2547.8,2546.8,3.92643]
[1724839138863,0.00364507,2547.8,2547.1,3.92589]
[1724839139062,0.00364507,2547.3,2547.1,0.07850864]
[1724839139270,0.05364507,2547.1,2546.9,2.40932618]
[1724839139561,5.90977409,2547.9,2546.4,0.07851583]
[1724839139562,0.00364507,2546.7,2546.4,0.07851583]
[1724839139772,0.00364507,2546.2,2545.1,3.92899]
[1724839140062,0.05,2546.4,2545.2,2.40932618]
[1724839140063,0.05364507,2546.0,2545.2,2.40932618]
[1724839140267,0.00364507,2545.6,2545.3,0.07856549]
[1724839140433,0.00364507,2546.6,2545.9,3.92781]
[1724839140642,0.05,2546.2,2545.5,2.40932618]
[1724839140827,0.05364507,2545.9,2545.5,2.40932618]
[1724839141171,0.05364507,2545.9,2545.6,0.07855936]
[1724839141587,12.54044149,2552.2,2545.6,0.07855936]
[1724839141588,0.00364507,2546.2,2545.8,3.9279]
[1724839141868,0.00364507,2546.2,2545.5,2.40932618]
[1724839141869,0.00364507,2546.8,2545.9,0.07853839]
[1724839142041,0.00364507,2546.8,2546.2,3.9273]
[1724839142387,3.92539,2547.6,2546.9,3.9263]
[1724839142388,0.00364507,2547.5,2546.9,3.9263]
[1724839142527,0.00364507,2547.5,2547.0,0.07851206]
[1724839142528,0.05,2547.2,2547.0,0.07851206]
[1724839142731,0.00364507,2547.5,2547.0,0.07851206]
[1724839143058,0.05,2547.6,2547.1,3.92592]
[1724839143265,0.05,2548.1,2547.4,3.9255]
[1724839143462,0.05,2548.1,2547.2,0.07848609]
[1724839143463,0.00364507,2547.4,2547.2,0.07849248]
[1724839143660,0.00364507,2547.4,2546.9,2.40932618]
[1724839143661,0.05364507,2547.4,2546.9,2.40932618]
[1724839143973,13.02347409,2548.0,2544.9,3.92937]
[1724839143974,0.00364507,2546.6,2545.8,3.92801]
[1724839144132,0.05026592,2546.6,2545.9,2.40932618]
[1724839144341,0.05026592,2546.6,2545.9,6.33716618]
[1724839144576,5.90977409,2547.4,2545.9,2.40932618]
[1724839144577,0.05,2546.4,2545.9,2.40932618]
[1724839144882,7.1137,2547.7,2546.1,3.92746]
[1724839145034,0.05,2547.8,2546.9,3.92623]
[1724839145235,0.05,2548.2,2547.3,3.92557]
[1724839145435,0.05,2548.2,2547.1,3.92596]
[1724839145436,0.05,2547.8,2547.1,3.92596]
[1724839145636,11.03778,2548.4,2547.0,2.40932618]
[1724839145637,0.05,2547.6,2547.0,2.40932618]
[1724839145873,0.05,2547.6,2545.8,11.56233]
[1724839145874,0.05,2547.4,2546.5,3.92691]
[1724839146037,0.05,2547.4,2546.6,0.0785161]
[1724839146474,0.05,2547.6,2547.1,3.92595]
[1724839146678,0.05,2547.4,2547.2,0.07849584]
[1724839147045,0.05,2548.3,2547.5,3.92526]
[1724839147344,0.05,2548.3,2547.6,0.07848036]
[1724839147549,0.05,2548.1,2547.6,0.07848036]
[1724839147755,7.1137,2548.4,2547.5,3.92526]
[1724839147756,0.05,2547.9,2547.5,3.92526]
[1724839147957,0.05,2547.9,2547.1,2.40932618]
[1724839147958,7.1637,2548.4,2547.6,3.92525]
[1724839148136,0.05,2547.9,2547.2,3.92587]
[1724839148441,0.05,2547.9,2547.1,2.40932618]
[1724839148442,0.05,2547.6,2547.1,2.40932618]
[1724839148634,0.05,2547.6,2546.7,8.156]
[1724839148635,0.05,2547.4,2546.7,8.156]
[1724839148952,0.05,2548.2,2548.0,3.92449]
[1724839149163,7.288,2549.1,2548.1,0.07847753]
[1724839149475,0.05,2548.2,2547.9,0.07847125]
[1724839149646,0.05,2548.0,2547.6,2.40932618]
[1724839149847,0.05,2548.0,2547.4,2.40932618]
[1724839150231,0.05,2548.0,2547.1,12.08194]
[1724839150435,0.07848234,2548.6,2547.2,0.07848982]
[1724839150436,0.05,2547.7,2547.2,0.07848982]
[1724839150635,0.05,2547.7,2547.1,3.92593]
[1724839150872,0.05,2547.7,2547.3,3.92572]
[1724839151079,0.05,2548.5,2547.4,4.00398457]
[1724839151376,0.05,2548.5,2546.8,2.40932618]
[1724839151377,0.05,2547.9,2547.3,3.9256]
[1724839151563,0.05,2548.1,2547.3,3.9256]
[1724839151884,0.05,2547.5,2546.8,2.40932618]
[1724839152069,0.05,2547.1,2546.9,0.07850946]
[1724839152379,0.05,2546.9,2545.6,7.92828]
[1724839152673,0.05,2547.3,2546.6,3.92669]
[1724839152864,0.05,2547.5,2546.4,3.92708]
[1724839153060,17.81942409,2547.9,2546.3,2.40932618]
[1724839153061,0.05,2547.7,2547.0,3.92606]
[1724839153232,0.05,2547.5,2547.1,0.07849854]
[1724839153579,0.05,2547.7,2547.1,0.07849854]
[1724839153890,3.97567,2547.4,2546.7,0.3982]
[1724839154090,3.92681,2546.6,2545.5,4.33943857]
[1724839154267,0.05,2546.5,2545.5,3.92839]
[1724839154587,0.05,2546.1,2545.5,0.3982]
[1724839154993,3.92736,2546.3,2544.7,3.92965]
[1724839154994,0.05,2545.8,2544.7,3.92965]
[1724839155195,0.05,2545.2,2544.6,2.40932618]
[1724839155495,0.05,2545.2,2544.3,8.156]
[1724839155496,0.05,2545.2,2544.7,0.07858017]
[1724839155695,7.5434,2545.7,2545.0,3.92926]
[1724839155995,7.5434,2545.7,2544.8,3.92955]
[1724839155996,7.4715,2546.3,2545.4,0.3982]
[1724839156199,5.95977409,2546.4,2545.5,0.47674416]
[1724839156383,7.4715,2546.9,2545.5,0.47674416]
[1724839156384,0.05,2546.2,2545.6,4.00672908]
[1724839156552,0.05,2546.2,2545.8,3.92802]
[1724839156757,0.05,2546.2,2545.9,0.07853603]
[1724839156953,0.05,2546.6,2546.3,3.92726]
[1724839157184,0.05,2546.6,2546.4,0.07852675]
[1724839157633,0.05,2546.2,2545.4,6.33784618]
[1724839157769,0.05,2546.2,2545.4,2.40932618]
[1724839157969,0.82563234,2546.8,2545.5,0.078546]
[1724839157970,0.05,2545.8,2545.5,0.078546]
[1724839158200,0.07848234,2546.7,2544.4,7.7747]
[1724839158201,0.05,2546.2,2545.6,3.9283]
[1724839158366,0.05,2546.2,2545.2,3.92885]
[1724839158706,3.92722,2546.4,2545.0,10.56532618]
[1724839158707,0.05,2545.8,2545.1,0.3982]
[1724839158900,7.9288,2545.8,2545.2,0.07855748]
[1724839159082,7.9288,2545.8,2545.1,0.3982]
[1724839159083,7.9288,2545.8,2545.1,4.32722]
[1724839159283,0.05,2545.7,2545.2,0.07855987]
[1724839159499,0.05,2545.7,2545.0,2.40932618]
[1724839159798,0.05,2545.7,2543.5,3.93144]
[1724839159799,0.05,2543.7,2543.1,3.93209]
[1724839160106,3.93,2544.6,2542.6,3.93297]
[1724839160107,0.05,2544.2,2543.4,3.93169]
[1724839160294,0.05,2544.0,2543.4,3.93162]
[1724839160596,0.05,2544.4,2542.8,2.40932618]
[1724839160794,7.9288,2544.6,2544.1,3.9306]
[1724839161094,7.9288,2544.6,2543.4,0.40604139]
[1724839161095,0.05,2544.4,2543.9,3.93087]
[1724839161297,0.05,2544.3,2543.8,3.93112]
[1724839161510,0.05,2544.2,2544.0,0.3982]
[1724839161871,0.05,2544.0,2543.4,3.93164]
[1724839162071,0.05,2543.9,2543.5,0.07860832]
[1724839162315,7.9288,2544.6,2544.2,3.9304]
[1724839162522,0.05,2544.5,2544.3,0.07859336]
[1724839162969,7.8788,2544.6,2543.8,0.4516329]
[1724839163169,7.8788,2544.6,2543.6,6.34063618]
[1724839163170,0.05,2544.7,2543.6,2.40932618]
[1724839163388,3.92673,2546.7,2543.6,2.40932618]
[1724839163389,0.05,2545.1,2545.0,3.92927]
[1724839163598,0.05,2545.5,2545.3,4.327]
[1724839164003,8.1106,2545.8,2545.5,3.9285]
[1724839164203,0.05,2545.7,2545.6,0.3982]
[1724839164408,0.05,2545.7,2545.1,2.40932618]
[1724839164621,8.1106,2545.8,2545.1,2.40932618]
[1724839164622,0.05,2545.4,2545.2,0.3982]
[1724839164771,0.05,2545.4,2544.9,3.92936]
[1724839164972,0.05,2545.6,2545.4,3.92853]
[1724839165275,0.05,2545.6,2545.0,0.55]
[1724839165276,0.05,2546.8,2545.5,0.62855271]
[1724839165592,0.05,2546.7,2546.0,3.92768]
[1724839165916,0.05,2546.7,2545.6,12.08432]
[1724839165917,0.05,2546.3,2545.8,3.92794]
[1724839166086,0.05,2545.9,2545.4,3.92855]
[1724839166486,0.05,2545.9,2545.5,0.3982]
[1724839166887,0.05,2545.9,2545.2,6.92889]
[1724839167074,0.05,2545.7,2545.3,3.92878]
[1724839167290,0.05,2545.4,2545.1,2.40932618]
[1724839167488,8.1058,2545.7,2544.9,4.32751]
[1724839167489,0.05,2545.2,2544.9,4.32751]
[1724839167827,0.05,2545.2,2545.0,4.32746]
[1724839168024,0.05,2545.6,2545.2,0.3982]
[1724839168181,0.05,2545.6,2544.6,2.40932618]
[1724839168379,0.05,2545.6,2545.1,3.92909]
[1724839168721,0.05,2545.6,2545.2,0.3982]
[1724839169294,0.05,2545.6,2545.3,0.3982]
[1724839169742,0.05,2546.2,2545.8,0.3982]
[1724839170019,0.05,2546.2,2545.2,2.40932618]
[1724839170020,0.05,2545.5,2545.2,2.40932618]
[1724839170226,0.05,2545.5,2545.3,0.07856077]
[1724839170433,0.05,2545.5,2545.0,3.0]
[1724839170776,0.05,2545.5,2544.7,3.92969]
[1724839170981,0.05,2544.8,2544.1,3.93054]
[1724839171279,0.05,2544.8,2544.5,3.92994]
[1724839171489,0.05,2544.8,2544.1,3.93066]
[1724839171680,7.3674,2545.4,2543.8,2.40932618]
[1724839171681,0.05,2545.0,2544.6,3.92973]
[1724839171876,0.05,2545.2,2544.7,0.3982]
[1724839172082,7.3674,2545.4,2545.0,0.3982]
[1724839172322,0.05,2545.5,2545.4,0.3982]
[1724839172495,0.05,2545.5,2545.4,0.4767567]
[1724839172696,0.05,2545.1,2544.6,7.85961]
[1724839172924,7.476,2545.0,2544.6,0.3982]
[1724839173126,7.476,2545.0,2544.2,8.156]
[1724839173127,0.05,2544.8,2544.3,3.0]
[1724839173285,7.476,2545.0,2544.5,3.92998]
[1724839173486,0.05,2544.9,2544.2,2.40932618]
[1724839173727,0.05,2544.9,2541.7,1.575859]
[1724839173728,0.05,2544.8,2544.3,4.0089356]
[1724839173907,7.526,2545.0,2544.4,3.9301]
[1724839174119,0.05,2544.6,2544.2,3.93047]
[1724839174312,0.05,2544.4,2544.0,3.93073]
[1724839174517,0.05,2544.4,2543.7,10.56532618]
[1724839174710,0.05,2544.7,2544.4,3.93011]
[1724839174896,0.05,2544.7,2544.5,0.07858371]
[1724839175527,7.476,2545.0,2543.9,3.93087]
[1724839175528,0.05,2544.4,2543.9,3.93087]
[1724839175733,0.05,2544.6,2544.0,0.07859162]
[1724839175902,7.476,2545.0,2544.3,0.3982]
[1724839176228,7.476,2545.0,2544.8,0.3982]
[1724839176382,0.05,2544.9,2544.8,0.3982]
[1724839176788,3.92761,2546.1,2544.8,0.3982]
[1724839176789,8.0765,2546.6,2545.4,0.3982]
[1724839177116,8.0765,2546.6,2545.9,0.3982]
[1724839177488,12.0034,2546.6,2545.6,3.92825]
[1724839177830,3.92607,2547.1,2546.2,3.92741]
[1724839177831,8.0765,2547.0,2546.2,3.92741]
[1724839178033,8.0765,2547.0,2545.7,5.13411741]
[1724839178034,0.07848234,2546.9,2545.7,6.92814]
[1724839178322,0.07848234,2546.9,2546.1,0.3982]
[1724839178323,4.00491234,2546.9,2546.1,0.3982]
[1724839178528,4.00491234,2546.9,2545.1,2.40932618]
[1724839178529,5.90977409,2546.5,2545.1,2.40932618]
[1724839178826,3.92732,2546.3,2545.3,3.92866]
[1724839179031,8.0765,2546.4,2545.7,3.92817]
[1724839179234,8.0765,2546.4,2545.8,0.47674117]
[1724839179443,8.88415,2546.4,2545.9,0.3982]
[1724839179591,3.92815,2545.8,2544.8,3.92952]
[1724839179793,0.96689734,2546.3,2544.9,0.07856639]
[1724839180036,0.96689734,2546.3,2544.5,6.33935618]
[1724839180037,0.07848234,2546.2,2544.7,3.92961]
[1724839180331,3.92796,2545.9,2545.0,4.32747]
[1724839180543,4.00655234,2545.8,2544.5,2.40932618]
[1724839180696,4.00655234,2545.8,2543.5,4.68571756]
[1724839180697,3.92931,2545.0,2544.1,7.86119]
[1724839180891,3.92909,2545.2,2543.9,2.40932618]
[1724839180892,3.92908,2545.2,2543.9,2.40932618]
[1724839181131,0.07848234,2545.4,2544.1,3.93056]
[1724839181295,3.92936,2545.0,2544.1,3.93056]
[1724839181498,3.92948,2544.9,2544.1,3.93056]
[1724839181700,7.6396,2545.3,2543.9,2.40932618]
[1724839181701,3.92937,2545.0,2543.9,2.40932618]
[1724839181935,3.92902,2545.2,2544.3,3.93034]
[1724839182135,7.6396,2545.3,2544.4,0.07858021]
[1724839182341,9.83760409,2546.0,2545.0,4.3274]
[1724839182342,13.40313,2545.8,2545.0,4.3274]
[1724839182537,9.475,2545.8,2545.0,4.3274]
[1724839182955,9.475,2545.8,2545.1,4.00758166]
[1724839183252,9.475,2545.8,2545.0,4.32737]
[1724839183447,3.92874,2545.4,2544.5,2.40932618]